bitfinex-derivatives/quotes_ETHF0:USTF0_20251012
["timestamp","ask_amount","ask_price","bid_price","bid_amount"]
[1760227567502,0.358,3738.2,3737.8,0.48107]
[1760227567703,0.84241754,3738.2,3737.8,0.00226868]
[1760227567903,0.358,3738.1,3737.8,0.37136868]
[1760227568402,0.00338754,3738.2,3738.1,0.3691]
[1760227569099,0.358,3737.9,3737.8,0.00226868]
[1760227571997,5.358,3737.9,3737.8,0.00226868]
[1760227572203,0.358,3737.0,3736.7,0.3691]
[1760227572401,0.83919,3737.0,3736.5,0.48124]
[1760227572607,0.358,3737.1,3736.4,0.3691]
[1760227572902,0.62242,3737.5,3736.5,0.1468]
[1760227573102,0.48112,3737.5,3737.0,0.3691]
[1760227573410,0.358,3737.4,3737.1,0.3691]
[1760227573711,0.358,3738.1,3737.6,0.3691]
[1760227573908,0.48102,3738.3,3737.6,0.3691]
[1760227574109,0.48102,3738.3,3737.7,0.48108]
[1760227574310,0.36138754,3738.2,3737.8,0.3691]
[1760227574507,0.358,3738.1,3737.7,0.48108]
[1760227574709,0.00338754,3738.2,3737.9,0.48106]
[1760227574906,0.00338754,3738.2,3738.0,0.3691]
[1760227575407,0.36138754,3738.2,3738.0,0.3691]
[1760227575608,0.00338754,3738.2,3738.1,0.3691]
[1760227576403,0.4993,3739.5,3738.2,0.3691]
[1760227576912,0.48082,3739.9,3738.6,0.3691]
[1760227577308,0.48369374,3739.9,3738.6,0.3691]
[1760227577704,0.48369374,3739.9,3739.3,0.48088]
[1760227577912,0.48369374,3739.9,3739.3,0.48363566]
[1760227578810,0.00287374,3739.9,3739.8,0.3691]
[1760227579712,0.358,3741.3,3739.9,0.3691]
[1760227579917,0.83863,3741.3,3740.6,0.3691]
[1760227580117,0.48066,3741.1,3740.6,0.3691]
[1760227580314,0.48066,3741.1,3740.5,0.99663]
[1760227580511,0.4806,3741.5,3740.9,0.48067]
[1760227580719,0.95792912,3742.3,3741.2,0.48063]
[1760227580720,0.00278855,3741.4,3741.2,0.48063]
[1760227580911,0.00278855,3741.4,3741.3,0.3691]
[1760227583014,0.00278855,3741.4,3741.3,5.3691]
[1760227583321,0.83847,3742.6,3741.6,0.3691]
[1760227583916,0.022,3742.8,3741.6,0.3691]
[1760227583917,0.358,3742.0,3741.6,0.3691]
[1760227584112,0.36019709,3742.0,3741.6,0.3691]
[1760227584521,0.36019709,3742.0,3741.5,0.4806]
[1760227584718,0.84074709,3742.0,3741.4,0.3691]
[1760227585223,0.84074709,3742.0,3741.5,0.4806]
[1760227585421,0.84074709,3742.0,3741.6,0.3691]
[1760227585622,0.84074709,3742.0,3741.7,0.3691]
[1760227588215,0.48274709,3742.0,3741.7,0.3691]
[1760227588421,0.358,3741.8,3740.5,0.5159]
[1760227588614,0.48063,3741.3,3740.7,0.4807]
[1760227588815,0.358,3741.1,3740.9,0.3691]
[1760227589215,1.20139,3741.9,3741.2,0.3691]
[1760227589216,0.48056,3741.9,3741.2,0.3691]
[1760227589420,0.48056,3741.9,3741.3,0.3691]
[1760227589617,0.48058,3741.8,3741.4,0.3691]
[1760227590024,0.48274709,3742.0,3741.4,0.3691]
[1760227590223,0.48274709,3742.0,3741.4,0.84971]
[1760227590712,0.83856,3741.9,3741.5,0.3691]
[1760227590918,0.83856,3741.9,3741.6,0.3691]
[1760227591221,0.00219709,3742.0,3741.7,0.3691]
[1760227591417,0.00219709,3742.0,3741.5,0.6274]
[1760227591721,0.00219709,3742.0,3741.6,0.3691]
[1760227592121,0.00219709,3742.0,3741.5,0.6274]
[1760227592522,0.48273709,3742.0,3741.5,0.6274]
[1760227592922,0.00219709,3742.0,3741.5,0.1468]
[1760227593325,0.00219709,3742.0,3741.6,0.3691]
[1760227593525,0.00219709,3742.0,3741.7,0.48057]
[1760227593723,0.358,3741.9,3741.6,0.3691]
[1760227594020,0.00219709,3742.0,3741.7,0.48057]
[1760227594222,0.00219709,3742.0,3741.8,0.3691]
[1760227594415,0.00219709,3742.0,3741.7,0.48057]
[1760227594618,0.00219709,3742.0,3741.9,0.3625]
[1760227595722,0.00219709,3742.0,3741.7,0.3625]
[1760227595924,0.3335,3741.5,3741.1,0.3625]
[1760227596525,0.3335,3741.5,3741.0,0.1468]
[1760227596722,0.00219709,3742.0,3741.1,0.3625]
[1760227596922,0.3335,3741.9,3740.6,0.3625]
[1760227597718,0.48065,3741.2,3740.8,0.48069]
[1760227598022,0.00219709,3742.0,3741.9,0.3625]
[1760227598624,0.022,3742.8,3742.1,0.3625]
[1760227598824,0.022,3742.8,3742.7,0.3625]
[1760227599531,0.3555,3742.8,3742.7,0.3625]
[1760227599726,0.35756688,3742.8,3742.7,0.36565934]
[1760227600428,0.35756688,3742.8,3742.7,0.00315934]
[1760227601326,0.35756688,3742.8,3742.7,0.36565934]
[1760227601529,0.02406688,3742.8,3742.7,0.36565934]
[1760227601828,0.35756688,3742.8,3742.7,0.36565934]
[1760227602623,0.02406688,3742.8,3742.7,0.36565934]
[1760227605026,0.02406688,3742.8,3742.7,5.36565934]
[1760227605527,0.3396,3744.2,3743.5,0.5104]
[1760227605832,0.48032,3743.8,3743.6,0.3639]
[1760227606131,0.3396,3743.7,3743.6,0.3639]
[1760227606528,0.48290298,3743.7,3743.4,0.3639]
[1760227606834,0.48290298,3743.7,3742.7,0.48360934]
[1760227606835,0.3396,3743.1,3742.7,0.48360934]
[1760227607036,0.3396,3743.1,3742.7,0.84750934]
[1760227607331,0.3396,3742.9,3742.7,0.36705934]
[1760227607631,0.4805,3742.3,3741.7,0.3639]
[1760227607824,3.43107072,3743.1,3742.2,0.48051]
[1760227607825,0.48043,3742.9,3742.2,0.48051]
[1760227608026,0.1436,3743.5,3742.4,0.3639]
[1760227608027,0.48044,3742.8,3742.4,0.3639]
[1760227608334,0.48041,3743.1,3742.5,0.99087]
[1760227608632,0.3396,3743.5,3742.8,0.3639]
[1760227608825,0.3396,3743.5,3742.8,0.84433]
[1760227609129,0.81999,3743.2,3742.5,0.48268113]
[1760227609428,0.4804,3743.1,3742.5,0.48268113]
[1760227609626,0.4804,3743.1,3742.6,0.48045]
[1760227609827,0.3396,3742.9,3742.6,0.84435]
[1760227610236,0.3396,3742.9,3742.6,0.3639]
[1760227610427,0.3396,3742.9,3742.6,0.84436]
[1760227610828,0.3396,3742.9,3742.6,0.48046]
[1760227611029,0.3396,3742.9,3742.7,0.3639]
[1760227611231,0.82006,3742.6,3742.5,0.00221113]
[1760227611529,1.49868243,3742.6,3742.5,0.00221113]
[1760227611831,6.49868243,3742.6,3742.5,0.00221113]
[1760227612132,0.3396,3741.8,3741.4,0.3639]
[1760227612433,0.82015,3742.0,3741.5,0.48059]
[1760227612631,0.82015,3742.0,3741.6,0.3639]
[1760227612826,0.82015,3742.0,3741.5,0.62709]
[1760227613026,0.82015,3742.0,3741.5,0.6290119]
[1760227613228,0.82015,3742.0,3741.6,0.3639]
[1760227613435,0.82015,3742.0,3741.5,0.6290119]
[1760227613633,0.82015,3742.0,3741.6,0.3639]
[1760227613841,0.4779,3743.0,3742.1,0.3639]
[1760227614131,0.48049,3742.4,3742.1,0.3639]
[1760227614333,0.48051,3742.3,3742.1,0.3639]
[1760227614537,0.48048,3742.5,3742.1,0.3639]
[1760227614835,0.48044,3742.8,3742.5,0.1465]
[1760227615022,0.48047,3742.5,3742.1,0.3639]
[1760227615330,0.48047,3742.5,3742.0,0.62703]
[1760227615536,0.3396,3742.8,3741.6,0.3639]
[1760227615732,0.48051,3742.3,3741.8,0.48056]
[1760227616032,0.3396,3742.6,3742.0,0.62703]
[1760227616336,0.4779,3743.0,3742.3,0.3639]
[1760227616636,1.15934845,3742.9,3742.3,0.3639]
[1760227616835,0.48045,3742.8,3742.4,0.3639]
[1760227617030,0.3396,3743.0,3742.3,0.3639]
[1760227617227,0.48045,3742.7,3742.3,0.84439]
[1760227617434,0.48045,3742.7,3742.4,0.3639]
[1760227617631,0.48045,3742.7,3742.6,0.3639]
[1760227618634,0.3396,3742.3,3741.7,0.3639]
[1760227619146,0.82017,3741.8,3741.5,0.3658219]
[1760227619435,0.82017,3741.8,3741.5,0.0019219]
[1760227619731,0.3396,3741.6,3741.5,0.0019219]
[1760227620140,0.3396,3742.8,3741.7,0.48058]
[1760227620439,0.48058,3741.7,3741.5,0.3658219]
[1760227620644,0.82018,3741.7,3741.5,0.3658219]
[1760227620938,0.48056,3741.9,3741.5,0.6290219]
[1760227621134,0.48057,3741.8,3741.6,0.3639]
[1760227621331,0.82018,3741.7,3741.5,0.0019219]
[1760227621640,0.3396,3741.1,3740.1,0.3639]
[1760227621939,0.48071,3740.7,3740.1,0.84468]
[1760227622436,0.48074,3740.5,3740.1,0.3639]
[1760227622641,0.48075,3740.4,3740.2,0.3639]
[1760227622832,0.82035,3740.4,3740.2,0.3639]
[1760227623031,0.48077,3740.2,3740.1,0.00307253]
[1760227623241,0.82037,3740.2,3740.1,0.00307253]
[1760227624433,5.82037,3740.2,3740.1,0.00307253]
[1760227624740,0.3396,3740.2,3740.1,0.00307253]
[1760227625836,0.48073,3740.5,3740.1,0.00307253]
[1760227626136,0.48303732,3740.7,3740.3,0.3599]
[1760227626440,0.3589,3740.6,3740.3,0.3599]
[1760227627034,0.00232732,3740.7,3740.1,0.00307253]
[1760227627334,0.00232732,3740.7,3740.6,0.3599]
[1760227627833,0.135,3742.5,3741.9,0.3599]
[1760227627834,0.3589,3742.5,3741.9,0.3599]
[1760227628030,0.3589,3742.9,3741.9,0.3599]
[1760227628231,0.48056,3741.9,3741.1,0.3599]
[1760227628435,0.3589,3741.8,3740.4,0.3599]
[1760227628728,0.48067,3741.0,3740.4,0.84064]
[1760227628939,0.3589,3740.8,3740.5,0.3599]
[1760227629139,0.3589,3741.7,3740.2,0.3599]
[1760227629432,0.4806,3741.6,3740.7,0.3599]
[1760227630036,0.4806,3741.6,3741.0,0.48065]
[1760227630233,0.8395,3741.6,3741.2,0.3599]
[1760227630435,0.4806,3741.6,3741.2,0.3599]
[1760227630635,0.3589,3741.6,3741.2,0.48063]
[1760227630832,0.3589,3741.6,3741.3,0.84052]
[1760227631032,0.00331304,3741.8,3740.6,0.3599]
[1760227631338,0.00331304,3741.8,3741.7,0.3599]
[1760227632330,0.48043,3742.9,3742.3,0.3599]
[1760227632534,0.48044,3742.8,3742.3,0.84039]
[1760227632739,0.48044,3742.8,3742.3,0.48049]
[1760227632940,0.83934,3742.8,3742.4,0.3599]
[1760227633335,0.3589,3742.7,3741.5,0.1354]
[1760227633543,0.3589,3742.7,3741.6,0.3599]
[1760227633744,0.3589,3742.0,3741.6,0.48059]
[1760227633940,0.3589,3741.9,3741.6,0.84048]
[1760227634137,0.3589,3741.9,3741.7,0.48057]
[1760227634337,0.3589,3742.3,3741.7,0.3599]
[1760227634634,0.48061,3741.5,3741.1,0.3599]
[1760227634843,0.3589,3741.4,3741.0,0.48066]
[1760227635344,0.48061,3741.5,3741.0,0.84056]
[1760227635545,0.3589,3741.4,3741.0,0.84056]
[1760227635738,0.3589,3741.4,3741.1,0.48065]
[1760227636044,0.3589,3741.4,3741.2,0.48063]
[1760227636252,0.3589,3741.4,3741.2,0.84053]
[1760227636435,12.01241,3742.4,3740.5,0.3599]
[1760227636636,0.3589,3740.6,3740.1,0.36297253]
[1760227636834,0.135,3741.5,3740.1,0.36297253]
[1760227636835,0.48068,3740.9,3740.5,0.48072]
[1760227637039,0.83958,3740.9,3740.5,0.84062]
[1760227637540,0.83958,3740.9,3740.6,0.84061]
[1760227637541,0.3589,3740.9,3740.6,0.84061]
[1760227638142,0.83959,3740.9,3740.6,0.3599]
[1760227638346,0.135,3741.5,3740.1,0.00307253]
[1760227638347,0.3589,3741.4,3740.4,0.48074]
[1760227638541,0.3589,3740.7,3740.2,0.48076]
[1760227638845,0.83957,3741.0,3740.6,0.3599]
[1760227639041,0.135,3741.5,3740.3,0.48075]
[1760227639241,0.3589,3740.9,3740.5,0.48073]
[1760227639548,0.48069,3740.9,3740.3,0.48075]
[1760227639744,0.4807,3740.8,3740.3,0.48075]
[1760227640046,0.4939,3741.0,3740.1,0.00307253]
[1760227640244,1.69557,3741.0,3740.1,0.00307253]
[1760227640442,0.48075,3740.4,3740.1,0.00307253]
[1760227640644,0.3589,3740.2,3740.1,0.00307253]
[1760227641044,5.3589,3740.2,3740.1,0.00307253]
[1760227641736,0.83981,3739.2,3738.5,0.4953]
[1760227641938,0.48092,3739.1,3738.5,0.84088]
[1760227642745,0.3589,3739.0,3738.7,0.48096]
[1760227642950,0.3589,3739.0,3738.8,0.3599]
[1760227643143,0.00266733,3739.1,3738.8,0.3599]
[1760227643449,0.36156733,3739.1,3738.8,0.3599]
[1760227643645,0.84247733,3739.1,3738.8,0.3599]
[1760227643843,0.36156733,3739.1,3738.8,0.3599]
[1760227644248,0.84248733,3739.1,3738.8,0.3599]
[1760227644744,0.48093,3739.0,3738.8,0.3599]
[1760227644941,0.3589,3738.8,3738.5,0.36247379]
[1760227645143,0.00266733,3739.1,3738.5,0.00257379]
[1760227645345,0.3589,3739.0,3738.5,0.00257379]
[1760227645547,0.00266733,3739.1,3738.5,0.00257379]
[1760227645846,0.36156733,3739.1,3738.5,0.00257379]
[1760227646246,0.48095,3738.9,3738.5,0.48355379]
[1760227646444,0.3589,3738.8,3738.5,0.84345379]
[1760227647246,0.83986,3738.8,3738.5,0.84345379]
[1760227647448,0.3589,3738.7,3738.5,0.84345379]
[1760227648049,0.3347,3738.7,3738.5,0.00257379]
[1760227648347,0.48096,3738.8,3738.5,0.00257379]
[1760227648646,0.3347,3738.7,3738.5,0.00257379]
[1760227648849,0.3347,3738.6,3738.5,0.00257379]
[1760227649350,0.81564,3738.9,3738.7,0.3323]
[1760227649853,0.3347,3738.9,3738.7,0.81325]
[1760227650652,0.3347,3738.8,3738.7,0.48095]
[1760227651547,0.3347,3738.9,3738.5,0.00257379]
[1760227651750,0.48096,3738.8,3738.5,0.00257379]
[1760227651952,0.3347,3738.7,3738.5,0.00257379]
[1760227652449,0.48096,3738.8,3738.5,0.48355379]
[1760227652649,0.61893,3739.0,3738.6,0.48097]
[1760227652846,0.3347,3738.9,3738.6,0.48097]
[1760227653052,0.61893,3739.0,3738.6,0.48097]
[1760227653948,0.61893,3739.0,3738.6,0.81327]
[1760227654150,0.3347,3738.9,3738.6,0.81327]
[1760227654352,0.3347,3738.9,3738.6,0.48097]
[1760227654653,0.3388,3738.8,3738.5,0.48356379]
[1760227654953,0.48097,3738.7,3738.5,0.34597379]
[1760227655149,0.3388,3738.6,3738.5,0.00257379]
[1760227657454,0.00266733,3739.1,3739.0,0.3434]
[1760227657656,0.00266733,3739.1,3739.0,0.4888]
[1760227659754,0.00266733,3739.1,3739.0,5.4888]
[1760227659951,0.3388,3740.4,3740.1,0.48078]
[1760227660150,0.3388,3740.4,3740.2,0.3434]
[1760227660351,0.48075,3740.4,3740.2,0.3434]
[1760227660554,0.3388,3740.3,3740.2,0.3434]
[1760227660761,0.3388,3740.5,3740.2,0.3434]
[1760227660960,0.00300411,3740.3,3740.2,0.3434]
[1760227663160,0.00300411,3740.3,3740.2,5.3434]
[1760227663561,9.817,3741.4,3740.2,5.3434]
[1760227663562,9.817,3741.4,3741.0,0.48066]
[1760227663765,9.817,3741.4,3741.2,0.48063]
[1760227664061,9.817,3741.4,3741.3,0.363]
[1760227664460,9.82036982,3741.4,3741.3,0.3662439]
[1760227664860,9.82036982,3741.4,3741.3,0.0032439]
[1760227665161,0.1358,3739.5,3738.7,0.363]
[1760227665351,0.3363,3739.4,3738.1,0.363]
[1760227665552,0.3363,3739.4,3737.5,0.62061]
[1760227665553,0.4721,3739.0,3737.5,0.62061]
[1760227665760,0.4721,3739.0,3737.5,0.98361]
[1760227665957,1.20236,3738.9,3737.8,0.02866823]
[1760227666161,0.3363,3738.0,3737.8,0.02866823]
[1760227666364,0.3363,3737.9,3737.8,0.02866823]
[1760227667365,0.3363,3737.8,3736.5,0.98374]
[1760227667665,0.3363,3737.4,3736.7,0.48121]
[1760227667859,0.48114,3737.3,3736.5,0.5025]
[1760227668062,0.48114,3737.3,3736.5,0.363]
[1760227668364,0.81747,3737.2,3736.5,0.36554303]
[1760227668556,0.3363,3737.2,3736.5,0.36554303]
[1760227668761,0.48117,3737.1,3736.5,0.36554303]
[1760227669264,0.48117,3737.1,3736.5,0.84678303]
[1760227670160,0.48119,3736.9,3736.5,0.00254303]
[1760227670361,0.48119,3736.9,3736.6,0.363]
[1760227670557,0.48117,3737.1,3736.5,0.00254303]
[1760227671166,0.13878805,3738.0,3736.8,0.4812]
[1760227671367,0.81737,3737.9,3737.2,0.363]
[1760227671564,0.48109,3737.8,3737.2,0.363]
[1760227672363,0.3363,3737.9,3737.2,0.363]
[1760227673153,0.3363,3737.9,3737.5,0.363]
[1760227673353,0.3363,3737.8,3737.5,0.363]
[1760227673562,0.81739,3737.8,3737.2,0.48115]
[1760227673767,0.81739,3737.8,3737.3,0.48114]
[1760227673964,0.3363,3737.7,3737.4,0.363]
[1760227674571,0.8174,3737.7,3737.4,0.363]
[1760227674868,0.8174,3737.7,3737.5,0.363]
[1760227674869,0.3363,3737.7,3737.5,0.363]
[1760227675272,0.3363,3737.9,3736.5,0.14204303]
[1760227675573,0.48113,3737.5,3736.9,0.48119]
[1760227675773,0.3363,3737.3,3736.9,0.84419]
[1760227675968,0.48116,3737.2,3736.9,0.363]
[1760227676176,1.20272,3737.8,3736.5,0.62328303]
[1760227676470,0.3363,3737.4,3736.5,0.00254303]
[1760227676670,0.4812,3736.9,3736.5,0.00254303]
[1760227676867,0.3363,3736.8,3736.5,0.00254303]
[1760227677269,0.3363,3736.7,3736.5,0.00254303]
[1760227677670,0.3363,3736.6,3736.5,0.00254303]
[1760227679172,0.4721,3736.5,3735.5,0.363]
[1760227679475,0.1358,3737.0,3735.6,0.363]
[1760227679665,0.1358,3737.0,3735.5,0.1395]
[1760227679666,0.48125,3736.5,3736.0,0.6208]
[1760227679868,0.48125,3736.5,3736.1,0.363]
[1760227680069,0.3363,3736.3,3736.1,0.363]
[1760227680271,0.3363,3736.2,3736.1,0.00262392]
[1760227681581,5.3363,3736.2,3736.1,0.00262392]
[1760227685186,0.4814,3735.4,3734.9,0.3511]
[1760227685383,0.3686,3735.4,3734.5,0.4906]
[1760227685991,0.3686,3735.3,3734.9,0.48145]
[1760227686196,0.3686,3735.3,3735.0,0.48143]
[1760227686197,0.00215809,3735.3,3735.0,0.48143]
[1760227686489,0.3686,3735.2,3735.0,0.48143]
[1760227686685,0.3686,3735.2,3734.9,0.00254909]
[1760227686889,0.00215809,3735.3,3734.9,0.00254909]
[1760227686890,0.5023,3735.0,3734.9,0.00254909]
[1760227687788,0.3686,3735.0,3734.9,0.00254909]
[1760227688088,0.00215809,3735.3,3735.2,0.3511]
[1760227688596,0.00215809,3735.3,3734.9,0.48399909]
[1760227689187,0.5023,3735.0,3734.9,0.00254909]
[1760227689695,5.5023,3735.0,3734.9,0.00254909]
[1760227689994,0.3686,3734.2,3733.8,0.48159]
[1760227690293,0.3686,3734.3,3733.6,0.48161]
[1760227690494,0.1337,3734.5,3733.5,0.48163]
[1760227690495,0.1337,3734.0,3733.5,0.48163]
[1760227690686,0.1337,3734.0,3733.6,0.48162]
[1760227690886,0.1337,3734.0,3733.6,0.48349334]
[1760227691089,0.1337,3734.0,3733.7,0.4816]
[1760227691291,0.3686,3733.9,3733.6,0.00187334]
[1760227691692,0.3686,3734.9,3733.7,0.3511]
[1760227691886,0.1337,3736.0,3734.9,0.3511]
[1760227692093,0.3686,3736.0,3735.2,0.3511]
[1760227692486,9.83,3736.2,3736.1,0.4813]
[1760227692692,0.3686,3736.8,3735.6,0.3511]
[1760227692885,0.3686,3736.6,3736.1,0.4813]
[1760227693096,0.3686,3736.4,3736.1,0.4813]
[1760227693393,0.00283523,3736.4,3735.9,0.48132]
[1760227693991,0.00283523,3736.4,3736.2,0.3511]
[1760227694186,0.00283523,3736.4,3736.2,0.83238]
[1760227694593,0.00283523,3736.4,3736.3,0.3511]
[1760227694789,0.00283523,3736.4,3736.3,0.35387691]
[1760227695605,0.00283523,3736.4,3736.3,0.00277691]
[1760227696302,0.00283523,3736.4,3736.3,0.35387691]
[1760227697594,0.37143523,3736.4,3736.3,0.00277691]
[1760227697799,0.85269523,3736.4,3736.3,0.00277691]
[1760227697993,0.85269523,3736.4,3734.7,1.2037]
[1760227697994,0.1337,3736.0,3735.5,0.48137]
[1760227698188,0.3686,3735.9,3735.6,0.48136]
[1760227698397,0.3686,3736.1,3735.6,0.48136]
[1760227698797,0.48129,3736.2,3735.6,0.48136]
[1760227699001,0.48129,3736.2,3735.6,0.48363036]
[1760227699191,0.3686,3736.3,3735.7,0.3511]
[1760227699499,0.00283523,3736.4,3736.3,0.3511]
[1760227700597,0.00283523,3736.4,3736.2,0.48128]
[1760227700999,0.00283523,3736.4,3735.6,0.00227036]
[1760227701199,0.48129,3736.2,3735.6,0.48362036]
[1760227701399,0.3686,3736.0,3735.6,0.48362036]
[1760227701602,0.48129,3736.2,3735.6,0.48362036]
[1760227701804,0.3686,3736.1,3735.6,0.48362036]
[1760227702096,0.3686,3735.7,3735.6,0.00227036]
[1760227702496,0.3686,3735.4,3734.8,0.48146]
[1760227703205,0.48141,3735.3,3734.8,0.48146]
[1760227703496,0.48142,3735.2,3734.8,0.00195065]
[1760227703703,0.3686,3735.1,3734.8,0.00195065]
[1760227703898,0.3686,3735.1,3734.9,0.48145]
[1760227704101,0.48139,3735.4,3734.9,0.48145]
[1760227704303,0.3686,3735.2,3735.0,0.48143]
[1760227704500,0.3686,3735.5,3735.2,0.48141]
[1760227704707,0.3686,3735.5,3735.2,0.83251]
[1760227704902,0.3686,3735.5,3734.8,0.00195065]
[1760227704903,0.3686,3735.9,3734.9,0.3511]
[1760227705096,0.67959331,3735.8,3735.4,0.48138]
[1760227705298,0.3686,3735.8,3735.4,0.48138]
[1760227705600,0.3686,3735.8,3735.5,0.48137]
[1760227705793,1.20302,3736.9,3734.9,0.3511]
[1760227705794,0.3686,3736.3,3735.6,0.48136]
[1760227706105,1.16094294,3736.2,3735.7,0.48134]
[1760227706403,0.3686,3736.0,3735.5,0.48137]
[1760227706703,0.3686,3735.9,3735.5,0.48137]
[1760227706906,0.48132,3736.0,3735.5,0.48137]
[1760227707202,0.3686,3735.8,3734.8,0.00195065]
[1760227707500,0.84997,3735.6,3735.0,0.48143]
[1760227707696,0.84998,3735.5,3735.1,0.3511]
[1760227707896,0.84999,3735.4,3735.1,0.3511]
[1760227708092,0.3686,3735.2,3734.9,0.48145]
[1760227708297,0.3686,3735.3,3734.9,0.48145]
[1760227708601,0.3686,3735.2,3734.9,0.48145]
[1760227708812,0.3686,3735.8,3734.8,0.00195065]
[1760227709012,0.3686,3735.3,3734.8,0.00195065]
[1760227709195,0.3686,3735.3,3734.9,0.3511]
[1760227709505,0.3686,3735.2,3735.0,0.48144]
[1760227710305,0.3686,3735.2,3735.0,0.83254]
[1760227710609,0.48143,3735.1,3735.0,0.3511]
[1760227711201,0.3686,3735.2,3735.0,0.3511]
[1760227711404,0.3686,3736.0,3735.5,0.3511]
[1760227711601,0.48122,3736.7,3736.2,0.48128]
[1760227711807,0.4813,3736.1,3735.6,0.83246]
[1760227712109,0.3686,3735.9,3735.7,0.48134]
[1760227712296,0.3686,3735.9,3735.7,0.83244]
[1760227712501,0.3686,3736.5,3736.2,0.83238]
[1760227712697,0.3686,3736.6,3735.8,0.3511]
[1760227713603,0.3686,3736.6,3735.5,0.1455]
[1760227713604,0.48125,3736.5,3736.1,0.48129]
[1760227713904,0.37143523,3736.4,3736.1,0.3511]
[1760227714108,0.00283523,3736.4,3736.3,0.3511]
[1760227715207,0.3361,3737.3,3736.7,0.3582]
[1760227715402,0.3361,3737.3,3736.6,0.48123]
[1760227716110,0.33841769,3737.3,3736.6,0.48123]
[1760227716305,0.3361,3737.2,3736.8,0.4812]
[1760227716511,0.00231769,3737.3,3736.6,0.3582]
[1760227716814,0.00231769,3737.3,3737.1,0.3582]
[1760227717611,0.33841769,3737.3,3737.1,0.3582]
[1760227718106,0.00231769,3737.3,3737.2,0.48116]
[1760227718405,9.831,3738.4,3737.5,0.134]
[1760227718611,9.831,3738.4,3737.8,0.48107]
[1760227718811,9.831,3738.4,3738.0,0.3582]
[1760227719106,9.831,3738.4,3738.1,0.3582]
[1760227719413,0.3361,3738.3,3738.1,0.00308821]
[1760227720111,0.81713,3738.2,3738.1,0.00308821]
[1760227720506,0.48111,3737.6,3737.1,0.83937]
[1760227720705,0.3361,3737.4,3737.1,0.3582]
[1760227720906,0.3443,3737.3,3736.6,0.3378]
[1760227721209,3.88651744,3737.4,3736.2,0.3378]
[1760227721405,0.48119,3737.0,3736.4,0.48125]
[1760227721610,0.3443,3736.8,3736.5,0.3378]
[1760227722009,0.1348,3737.5,3736.4,0.00201896]
[1760227722307,0.48116,3737.2,3736.7,0.48121]
[1760227722507,0.3443,3737.2,3736.9,0.48119]
[1760227722708,0.3443,3737.6,3737.0,0.3378]
[1760227723101,0.3443,3737.6,3737.4,0.48112]
[1760227723414,0.3443,3738.3,3737.5,0.3378]
[1760227723706,0.3443,3738.3,3737.0,0.1377]
[1760227723911,0.3443,3737.9,3737.3,0.48114]
[1760227724108,0.3443,3738.3,3737.6,0.3378]
[1760227724313,0.1348,3739.0,3738.3,0.3378]
[1760227724314,0.00296018,3738.4,3738.3,0.3378]
[1760227726403,0.00296018,3738.4,3738.0,0.48105]
[1760227726608,0.34726018,3738.4,3738.1,0.3378]
[1760227726803,0.34726018,3738.4,3738.2,0.3378]
[1760227727711,0.00296018,3738.4,3738.0,0.48105]
[1760227728013,0.82532,3738.3,3738.1,0.3378]
[1760227728209,0.82538,3737.8,3737.2,0.48115]
[1760227728516,0.4811,3737.7,3737.2,0.48115]
[1760227728714,0.8254,3737.7,3737.3,0.3378]
[1760227728912,0.48111,3737.6,3737.2,0.48115]
[1760227729217,0.3443,3737.2,3736.8,0.4812]
[1760227729511,0.3443,3736.9,3736.6,0.81903]
[1760227729911,0.48124,3736.6,3736.4,0.00201896]
[1760227730111,0.3443,3736.5,3736.4,0.00201896]
[1760227730515,0.3443,3737.1,3736.4,0.00201896]
[1760227730716,0.82552,3736.8,3736.5,0.3378]
[1760227731016,0.3443,3736.7,3736.5,0.3378]
[1760227731211,0.48118,3737.1,3736.6,0.48123]
[1760227731413,0.48118,3737.1,3736.9,0.3378]
[1760227732512,0.48118,3737.1,3736.5,0.81904]
[1760227732814,0.3443,3737.4,3736.4,0.00201896]
[1760227733117,0.4812,3736.9,3736.6,0.3378]
[1760227733306,0.4812,3736.9,3736.5,0.48124]
[1760227733512,0.4812,3736.9,3736.6,0.3378]
[1760227733717,0.4812,3736.9,3736.5,0.48124]
[1760227733912,0.4812,3736.9,3736.7,0.3378]
[1760227734220,0.4812,3736.9,3736.5,0.48124]
[1760227734221,0.48114,3737.4,3736.6,0.3378]
[1760227734816,0.48115,3737.3,3736.8,0.4812]
[1760227735116,0.3443,3737.2,3736.9,0.3378]
[1760227735921,0.48117,3737.2,3736.7,0.48121]
[1760227736218,0.3443,3737.1,3736.8,0.819]
[1760227736417,0.3443,3737.0,3736.8,0.3378]
[1760227736819,0.48118,3737.1,3736.8,0.3378]
[1760227737014,0.82549,3737.0,3736.8,0.3378]
[1760227737211,0.3443,3736.9,3736.6,0.81903]
[1760227737718,0.3443,3737.6,3737.0,0.4755]
[1760227737918,0.48116,3737.2,3737.1,0.3378]
[1760227738117,0.3443,3736.9,3736.6,0.3378]
[1760227738307,0.1348,3737.5,3736.6,0.3378]
[1760227738512,0.96035,3736.5,3736.4,0.00201896]
[1760227739618,0.82555,3736.5,3736.4,0.00201896]
[1760227740015,0.48121,3736.8,3736.4,0.82107896]
[1760227740221,0.48122,3736.7,3736.5,0.3378]
[1760227740514,0.82552,3736.7,3736.5,0.3378]
[1760227740716,0.3443,3736.6,3736.5,0.3378]
[1760227740916,0.3443,3736.6,3736.4,0.48327896]
[1760227741115,0.1348,3737.5,3736.4,0.00201896]
[1760227741412,0.48115,3737.3,3736.8,0.4812]
[1760227741614,0.82545,3737.3,3737.0,0.81898]
[1760227741807,0.3443,3737.2,3737.0,0.81898]